{"text_format":"3","workbook":"xlsx","n_sheets":3,"sheets":["รายชื่อนักเรียน","รายชื่อในชั้นเรียน","รายละเอียดนักเรียน"],"not_rendered":{"images":2,"defined_names":8},"read":"whole","date_system":"1900"}

{"sheet":"รายชื่อนักเรียน","index":0,"n_rows":8,"n_cols":13,"rows_kept":8,"merged":[[1,2,2,3],[1,4,1,11],[2,4,2,11],[6,12,8,16]]}
[]
[null,null,"รายชื่อนักเรียน",null,"ไปที่รายชื่อในชั้นเรียน"]
[{"$nulls":4},"ไปที่รายละเอียดนักเรียน"]
[null,null,"ชื่อนักเรียน","อีเมล","โทรศัพท์บ้าน","หมายเลขโทรศัพท์มือถือ","วันเกิด","ที่ติดต่อฉุกเฉิน","หมายเลขโทรศัพท์ฉุกเฉิน","แพทย์","หมายเลขโทรศัพท์ของแพทย์","  "]
[null,null,"ชื่อ 1","ที่อยู่อีเมล","หมายเลขโทรศัพท์บ้าน","หมายเลขโทรศัพท์มือถือ","วันที่","ผู้ติดต่อ 1","หมายเลขโทรศัพท์ฉุกเฉิน","แพทย์ 1","หมายเลขโทรศัพท์ของแพทย์"]
[null,null,"ชื่อ 2","ที่อยู่อีเมล","หมายเลขโทรศัพท์บ้าน","หมายเลขโทรศัพท์มือถือ","วันที่","ผู้ติดต่อ 2","หมายเลขโทรศัพท์ฉุกเฉิน","แพทย์ 2","หมายเลขโทรศัพท์ของแพทย์"]
[null,null,"ชื่อ 3","ที่อยู่อีเมล","หมายเลขโทรศัพท์บ้าน","หมายเลขโทรศัพท์มือถือ","วันที่","ผู้ติดต่อ 3","หมายเลขโทรศัพท์ฉุกเฉิน","แพทย์ 3","หมายเลขโทรศัพท์ของแพทย์",null,"เคล็ดลับ: เมื่อต้องการเพิ่มนักเรียน ให้กดแป้นแท็บในเซลล์ช่องสุดท้ายของตาราง"]
[null,null,"ชื่อ 4","ที่อยู่อีเมล","หมายเลขโทรศัพท์บ้าน","หมายเลขโทรศัพท์มือถือ","วันที่","ผู้ติดต่อ 4","หมายเลขโทรศัพท์ฉุกเฉิน","แพทย์ 4","หมายเลขโทรศัพท์ของแพทย์"]

{"sheet":"รายชื่อในชั้นเรียน","index":1,"n_rows":12,"n_cols":7,"rows_kept":12,"merged":[[1,2,2,2],[1,3,2,3],[1,4,1,6],[2,4,2,6]]}
[]
[null,null,"รายชื่อในชั้นเรียน","สถานบันการออกแบบกราฟิก","ไปที่รายชื่อนักเรียน"]
[{"$nulls":4},"ไปที่รายละเอียดนักเรียน"]
[null,null,"หลักสูตร","ชื่อหลักสูตร","วันที่เริ่มต้น","วันที่"]
[null,null,"ผู้สอน","ผู้สอน 1","วันที่สิ้นสุด","วันที่"]
[null,null,"นักเรียนที่ลงทะเบียน",{"$f":"COUNTA(StudentRoster[ชื่อนักเรียน])","v":4}]
[]
[null,null,"ชื่อนักเรียน","อีเมล","หมายเลขโทรศัพท์บ้าน","หมายเลขโทรศัพท์มือถือ","  "]
[null,null,"ชื่อ 1",{"$f":"IFERROR(VLOOKUP(StudentRoster[[#This Row],[ชื่อนักเรียน]],นักเรียน[],2),\"\")","v":"ที่อยู่อีเมล"},{"$f":"IFERROR(VLOOKUP(StudentRoster[[#This Row],[ชื่อนักเรียน]],นักเรียน[],3),\"\")","v":"หมายเลขโทรศัพท์บ้าน"},{"$f":"IFERROR(VLOOKUP(StudentRoster[[#This Row],[ชื่อนักเรียน]],นักเรียน[],4),\"\")","v":"หมายเลขโทรศัพท์มือถือ"}]
[null,null,"ชื่อ 2",{"$f":"IFERROR(VLOOKUP(StudentRoster[[#This Row],[ชื่อนักเรียน]],นักเรียน[],2),\"\")","v":"ที่อยู่อีเมล"},{"$f":"IFERROR(VLOOKUP(StudentRoster[[#This Row],[ชื่อนักเรียน]],นักเรียน[],3),\"\")","v":"หมายเลขโทรศัพท์บ้าน"},{"$f":"IFERROR(VLOOKUP(StudentRoster[[#This Row],[ชื่อนักเรียน]],นักเรียน[],4),\"\")","v":"หมายเลขโทรศัพท์มือถือ"}]
[null,null,"ชื่อ 3",{"$f":"IFERROR(VLOOKUP(StudentRoster[[#This Row],[ชื่อนักเรียน]],นักเรียน[],2),\"\")","v":"ที่อยู่อีเมล"},{"$f":"IFERROR(VLOOKUP(StudentRoster[[#This Row],[ชื่อนักเรียน]],นักเรียน[],3),\"\")","v":"หมายเลขโทรศัพท์บ้าน"},{"$f":"IFERROR(VLOOKUP(StudentRoster[[#This Row],[ชื่อนักเรียน]],นักเรียน[],4),\"\")","v":"หมายเลขโทรศัพท์มือถือ"}]
[null,null,"ชื่อ 4",{"$f":"IFERROR(VLOOKUP(StudentRoster[[#This Row],[ชื่อนักเรียน]],นักเรียน[],2),\"\")","v":"ที่อยู่อีเมล"},{"$f":"IFERROR(VLOOKUP(StudentRoster[[#This Row],[ชื่อนักเรียน]],นักเรียน[],3),\"\")","v":"หมายเลขโทรศัพท์บ้าน"},{"$f":"IFERROR(VLOOKUP(StudentRoster[[#This Row],[ชื่อนักเรียน]],นักเรียน[],4),\"\")","v":"หมายเลขโทรศัพท์มือถือ"}]

{"sheet":"รายละเอียดนักเรียน","index":2,"n_rows":13,"n_cols":4,"rows_kept":13,"merged":[[1,2,2,2],[1,3,1,4],[2,3,2,4],[3,2,3,3]]}
[]
[null,null,"รายละเอียดนักเรียน","ไปที่รายชื่อนักเรียน"]
[{"$nulls":3},"ไปที่รายชื่อในชั้นเรียน"]
[null,null,"เคล็ดลับ: เลือกนักเรียนจากรายการแบบดรอปดาวน์ในเซลล์ D5 เพื่ออัปเดตรายละเอียดนักเรียน"]
[null,null,"ชื่อนักเรียน","ชื่อ 1"]
[null,null,"อีเมล",{"$f":"IFERROR(VLOOKUP(StudentName,นักเรียน[],2,FALSE),\"\")","v":"ที่อยู่อีเมล"}]
[null,null,"หมายเลขโทรศัพท์บ้าน",{"$f":"IFERROR(VLOOKUP(StudentName,นักเรียน[],3,FALSE),\"\")","v":"หมายเลขโทรศัพท์บ้าน"}]
[null,null,"หมายเลขโทรศัพท์มือถือ",{"$f":"IFERROR(VLOOKUP(StudentName,นักเรียน[],4,FALSE),\"\")","v":"หมายเลขโทรศัพท์มือถือ"}]
[null,null,"วันเกิด",{"$f":"IFERROR(VLOOKUP(StudentName,นักเรียน[],5,FALSE),\"\")","v":"วันที่"}]
[null,null,"ที่ติดต่อฉุกเฉิน",{"$f":"IFERROR(VLOOKUP(StudentName,นักเรียน[],6,FALSE),\"\")","v":"ผู้ติดต่อ 1"}]
[null,null,"หมายเลขโทรศัพท์ฉุกเฉิน",{"$f":"IFERROR(VLOOKUP(StudentName,นักเรียน[],7,FALSE),\"\")","v":"หมายเลขโทรศัพท์ฉุกเฉิน"}]
[null,null,"แพทย์",{"$f":"IFERROR(VLOOKUP(StudentName,นักเรียน[],8,FALSE),\"\")","v":"แพทย์ 1"}]
[null,null,"หมายเลขโทรศัพท์ของแพทย์",{"$f":"IFERROR(VLOOKUP(StudentName,นักเรียน[],9,FALSE),\"\")","v":"หมายเลขโทรศัพท์ของแพทย์"}]